bitfinex/quotes_SOLUSD_20241101
["timestamp","ask_amount","ask_price","bid_price","bid_amount"]
[1730479433778,17.48455194,165.7,165.64,41.26143594]
[1730479434004,17.48455194,165.7,165.65,17.48455194]
[1730479434212,17.48455194,165.71,165.65,17.48455194]
[1730479434501,17.48455194,165.76,165.7,17.48455194]
[1730479434717,6.6,165.79,165.65,6.16229]
[1730479434718,17.48455194,165.77,165.72,17.48455194]
[1730479435303,17.48455194,165.81,165.75,17.48455194]
[1730479435519,17.48455194,165.82,165.76,17.48455194]
[1730479435679,17.48455194,165.85,165.8,17.48455194]
[1730479435997,17.48455194,165.86,165.81,17.48455194]
[1730479436209,6.0288,165.87,165.8,17.48455194]
[1730479436210,17.48455194,165.85,165.8,17.48455194]
[1730479436506,15.1098,165.89,165.77,0.12549]
[1730479436804,21.0998,165.88,165.74,17.48455194]
[1730479437006,21.94197496,165.88,165.72,22.3096]
[1730479437205,6.6,165.87,165.69,15.0875]
[1730479437413,6.6,165.87,165.68,22.3096]
[1730479437609,15.95197496,165.86,165.68,22.3096]
[1730479437905,20.0,165.84,165.68,22.3096]
[1730479438078,17.48455194,165.74,165.68,39.79415194]
[1730479438277,17.48455194,165.7,165.65,17.48455194]
[1730479438504,17.48455194,165.71,165.66,17.48455194]
[1730479438718,21.116,165.75,165.65,0.12549]
[1730479438911,23.776884,165.74,165.65,0.12549]
[1730479440014,27.98363364,165.69,165.65,0.12549]
[1730479441011,27.98363364,165.66,165.65,0.12549]
[1730479442312,34.02003364,165.66,165.65,0.12549]
[1730479442628,27.98363364,165.66,165.65,0.12549]
[1730479442927,34.02003364,165.66,165.65,0.12549]
[1730479444004,57.79691764,165.66,165.65,0.12549]
[1730479444719,23.776884,165.65,165.57,0.6134955]
[1730479445116,27.98363364,165.58,165.57,0.6134955]
[1730479446424,27.98363364,165.59,165.57,0.6134955]
[1730479446802,27.98363364,165.61,165.57,15.7127955]
[1730479447008,27.98363364,165.61,165.57,0.6134955]
[1730479447526,27.98363364,165.58,165.57,0.6134955]
[1730479448004,51.76051764,165.58,165.57,0.6134955]
[1730479448203,51.76051764,165.58,165.55,0.4]
[1730479448204,23.776884,165.57,165.55,0.4]
[1730479448421,21.7315,165.6,165.55,0.4]
[1730479448726,27.98363364,165.56,165.55,0.4]
[1730479449712,55.96726728,165.56,165.46,6.6094]
[1730479449986,27.98363364,165.47,165.44,15.0146]
[1730479450114,27.98363364,165.45,165.42,6.6094]
[1730479450308,27.98363364,165.44,165.42,6.6094]
[1730479450509,27.98363364,165.52,165.41,0.6134955]
[1730479450510,27.98363364,165.43,165.41,0.6134955]
[1730479450934,6.0419,165.51,165.41,0.6134955]
[1730479450935,27.98363364,165.44,165.41,0.6134955]
[1730479451115,27.98363364,165.43,165.41,0.6134955]
[1730479451524,27.98363364,165.44,165.41,0.6134955]
[1730479451747,27.98363364,165.46,165.41,34.64242914]
[1730479451926,27.98363364,165.46,165.41,49.75632914]
[1730479452115,27.98363364,165.45,165.41,21.7726955]
[1730479452318,27.98363364,165.44,165.41,15.7273955]
[1730479452543,27.98363364,165.43,165.41,0.6134955]
[1730479452918,27.98363364,165.42,165.41,0.6134955]
[1730479453522,21.7315,165.59,165.44,0.12549]
[1730479453753,15.5308,165.59,165.44,0.12549]
[1730479453951,305.02462293,165.73,165.44,0.12549]
[1730479453952,34.02223364,165.6,165.44,0.12549]
[1730479454463,34.02223364,165.6,165.44,44.027864]
[1730479454632,27.98363364,165.55,165.5,51.76051764]
[1730479454836,27.98363364,165.56,165.51,27.98363364]
[1730479455038,15.5308,165.63,165.53,27.98363364]
[1730479455039,27.98363364,165.58,165.53,27.98363364]
[1730479455348,27.98363364,165.57,165.52,27.98363364]
[1730479455531,27.98363364,165.56,165.52,23.776884]
[1730479455728,27.98363364,165.55,165.5,27.98363364]
[1730479455943,27.98363364,165.57,165.52,27.98363364]
[1730479456335,27.98363364,165.56,165.51,27.98363364]
[1730479456533,27.98363364,165.58,165.52,34.02513364]
[1730479456732,27.98363364,165.61,165.56,27.98363364]
[1730479456932,50.17163364,165.68,165.57,27.98363364]
[1730479456933,27.98363364,165.62,165.57,27.98363364]
[1730479457150,50.17163364,165.68,165.53,30.243484]
[1730479457151,27.98363364,165.59,165.54,28.10912364]
[1730479457351,6.036,165.67,165.53,58.22711764]
[1730479457555,4.50877816,165.66,165.53,6.4666]
[1730479457757,27.98363364,165.58,165.53,34.45023364]
[1730479458540,27.98363364,165.58,165.53,40.49123364]
[1730479458752,27.98363364,165.61,165.56,27.98363364]
[1730479459058,27.98363364,165.6,165.55,27.98363364]
[1730479459258,27.98363364,165.58,165.53,55.59423364]
[1730479459648,27.98363364,165.59,165.54,27.98363364]
[1730479459966,27.98363364,165.62,165.56,27.98363364]
[1730479460167,27.98363364,165.66,165.6,27.98363364]
[1730479460452,4.50846543,165.65,165.63,27.98363364]
[1730479460658,27.98363364,165.67,165.62,27.98363364]
[1730479460961,32.49194118,165.66,165.61,27.98363364]
[1730479461157,27.98363364,165.64,165.59,27.98363364]
[1730479461536,28.4178,165.72,165.56,23.902374]
[1730479461537,27.98363364,165.66,165.61,27.98363364]
[1730479461738,4.50852149,165.65,165.61,27.98363364]
[1730479461949,27.98363364,165.66,165.56,23.902374]
[1730479461950,27.98363364,165.66,165.6,27.98363364]
[1730479462265,4.50854836,165.65,165.62,27.98363364]
[1730479462562,27.98363364,165.66,165.61,27.98363364]
[1730479462765,4.50856446,165.65,165.61,27.98363364]
[1730479462962,27.98363364,165.66,165.61,27.98363364]
[1730479463144,4.50859857,165.65,165.61,27.98363364]
[1730479463346,27.98363364,165.66,165.61,27.98363364]
[1730479463662,4.50877445,165.65,165.63,27.98363364]
[1730479463865,27.98363364,165.68,165.63,27.98363364]
[1730479464068,4.50873521,165.67,165.63,27.98363364]
[1730479464368,27.98363364,165.64,165.57,27.98363364]
[1730479464671,27.98363364,165.58,165.53,34.45023364]
[1730479465461,15.8848,165.63,165.55,27.98363364]
[1730479465462,27.98363364,165.61,165.55,27.98363364]
[1730479465649,27.98363364,165.62,165.57,27.98363364]
[1730479465858,4.51042024,165.61,165.59,27.98363364]
[1730479466042,34.02083364,165.64,165.59,27.98363364]
[1730479466234,27.98363364,165.64,165.59,27.98363364]
[1730479466446,32.49336839,165.63,165.58,27.98363364]
[1730479466646,4.50973475,165.62,165.58,27.98363364]
[1730479466860,27.98363364,165.63,165.58,27.98363364]
[1730479467156,4.50942159,165.62,165.59,27.98363364]
[1730479467362,27.98363364,165.65,165.6,27.98363364]
[1730479467572,4.50902706,165.64,165.61,27.98363364]
[1730479467857,4.50902706,165.64,165.55,0.12549]
[1730479467858,27.98363364,165.67,165.62,27.98363364]
[1730479468060,4.50877128,165.66,165.64,27.98363364]
[1730479468238,27.98363364,165.68,165.63,27.98363364]
[1730479468437,4.50851788,165.67,165.63,27.98363364]
[1730479468638,4.50851788,165.66,165.63,27.98363364]
[1730479468853,27.98363364,165.68,165.62,34.45333364]
[1730479468854,4.50851788,165.65,165.62,34.45333364]
[1730479469052,27.98363364,165.68,165.62,34.45333364]
[1730479469238,4.50856142,165.67,165.62,34.45333364]
[1730479469444,4.50856142,165.66,165.62,34.45333364]
[1730479469653,4.50856142,165.65,165.63,27.98363364]
[1730479469844,34.01963364,165.68,165.63,27.98363364]
[1730479470053,4.50865813,165.67,165.63,27.98363364]
[1730479470367,4.50865813,165.66,165.64,27.98363364]
[1730479470665,27.98363364,165.67,165.62,34.45333364]
[1730479470966,4.50894205,165.66,165.63,27.98363364]
[1730479471260,4.50887776,165.65,165.63,27.98363364]
[1730479471458,15.0863,165.72,165.62,6.4697]
[1730479471459,34.01893364,165.7,165.64,27.98363364]
[1730479471766,4.50874531,165.69,165.68,27.98363364]
[1730479472483,34.01643364,165.76,165.68,51.76051764]
[1730479472670,4.50739544,165.75,165.72,27.98363364]
[1730479472848,4.50739544,165.74,165.72,27.98363364]
[1730479473040,34.01593364,165.78,165.72,27.98363364]
[1730479473238,4.50710735,165.73,165.72,27.98363364]
[1730479473865,4.50710735,165.73,165.71,27.98363364]
[1730479474073,27.98363364,165.74,165.69,27.98363364]
[1730479474247,27.98363364,165.71,165.66,27.98363364]
[1730479474567,4.50516731,165.7,165.66,27.98363364]
[1730479474771,32.48880095,165.7,165.65,27.98363364]
[1730479474945,27.98363364,165.72,165.66,27.98363364]
[1730479475140,27.98363364,165.76,165.66,27.98363364]
[1730479475141,32.48825653,165.71,165.66,27.98363364]
[1730479475364,32.48825653,165.71,165.65,27.98363364]
[1730479475365,32.48825653,165.7,165.65,27.98363364]
[1730479475568,4.50462289,165.69,165.65,27.98363364]
[1730479475765,34.01823364,165.71,165.66,27.98363364]
[1730479475957,4.50455673,165.7,165.66,27.98363364]
[1730479476290,4.50455673,165.7,165.62,34.45333364]
[1730479476291,27.98363364,165.68,165.62,34.45333364]
[1730479476466,27.98363364,165.64,165.59,27.98363364]
[1730479476666,27.98363364,165.63,165.58,6.1096]
[1730479476962,27.98363364,165.68,165.54,12.23970074]
[1730479476963,4.50621606,165.62,165.54,33.76820074]
[1730479477289,6.036,165.67,165.55,0.12549]
[1730479477584,6.354,165.71,165.55,0.12549]
[1730479477964,27.98363364,165.69,165.64,27.98363364]
[1730479478164,27.98363364,165.67,165.61,51.76051764]
[1730479478589,27.98363364,165.67,165.62,27.98363364]
[1730479479475,27.98363364,165.69,165.63,27.98363364]
[1730479479775,27.98363364,165.72,165.67,27.98363364]
[1730479480003,27.98363364,165.72,165.63,6.3869]
[1730479480004,27.98363364,165.72,165.66,27.98363364]
[1730479480358,6.0339,165.73,165.63,6.3869]
[1730479480359,34.01713364,165.74,165.69,27.98363364]
[1730479480563,27.98363364,165.72,165.67,27.98363364]
[1730479480796,6.0335,165.74,165.64,23.902374]
[1730479480797,27.98363364,165.71,165.66,27.98363364]
[1730479481083,27.98363364,165.7,165.64,51.76051764]
[1730479481285,27.98363364,165.68,165.63,6.3869]
[1730479481492,27.98363364,165.7,165.65,27.98363364]
[1730479481995,6.0339,165.73,165.63,12.4244]
[1730479481996,27.98363364,165.72,165.66,27.98363364]
[1730479482165,27.98363364,165.71,165.66,27.98363364]
[1730479482678,27.98363364,165.7,165.65,27.98363364]
[1730479482882,6.0339,165.73,165.62,27.98363364]
[1730479482883,27.98363364,165.68,165.62,27.98363364]
[1730479483061,27.98363364,165.66,165.61,27.98363364]
[1730479483973,6.0363,165.67,165.59,12.3421]
[1730479483974,27.98363364,165.67,165.62,27.98363364]
[1730479484177,34.01963364,165.68,165.63,27.98363364]
[1730479484408,34.01903364,165.69,165.64,27.98363364]
[1730479484694,34.01903364,165.69,165.63,27.98363364]
[1730479484866,34.01903364,165.69,165.64,27.98363364]
[1730479485064,34.01903364,165.69,165.63,27.98363364]
[1730479485293,27.98363364,165.68,165.63,27.98363364]
[1730479485491,34.01903364,165.69,165.64,27.98363364]
[1730479485785,27.98363364,165.68,165.63,27.98363364]
[1730479486094,27.98363364,165.65,165.6,49.11883364]
[1730479486297,27.98363364,165.67,165.62,27.98363364]
[1730479486807,27.98363364,165.68,165.63,27.98363364]
[1730479487092,6.0354,165.69,165.64,27.98363364]
[1730479487463,34.01903364,165.69,165.64,27.98363364]
[1730479487667,15.0849,165.73,165.65,27.98363364]
[1730479487668,34.01863364,165.7,165.65,27.98363364]
[1730479488167,34.01813364,165.72,165.67,27.98363364]
[1730479488405,6.0345,165.72,165.67,27.98363364]
[1730479488570,27.98363364,165.74,165.68,27.98363364]
[1730479488773,27.98363364,165.73,165.68,27.98363364]
[1730479489679,27.98363364,165.75,165.69,27.98363364]
[1730479490005,27.98363364,165.76,165.71,27.98363364]
[1730479490189,27.98363364,165.77,165.72,27.98363364]
[1730479490373,34.01563364,165.78,165.73,27.98363364]
[1730479490574,27.98363364,165.76,165.71,27.98363364]
[1730479490784,27.98363364,165.75,165.7,27.98363364]
[1730479490987,27.98363364,165.77,165.72,27.98363364]
[1730479491181,27.98363364,165.77,165.7,23.776884]
[1730479491182,27.98363364,165.78,165.73,27.98363364]
[1730479492202,27.98363364,165.8,165.75,27.98363364]
[1730479492374,34.01483364,165.81,165.76,27.98363364]
[1730479492699,27.98363364,165.79,165.74,27.98363364]
[1730479493194,27.98363364,165.8,165.75,27.98363364]
[1730479493400,27.98363364,165.81,165.76,27.98363364]
[1730479493586,27.98363364,165.82,165.77,27.98363364]
[1730479494106,34.01393364,165.83,165.78,27.98363364]
[1730479494472,27.98363364,165.83,165.78,27.98363364]
[1730479494798,27.98363364,165.85,165.8,27.98363364]
[1730479495030,27.98363364,165.85,165.79,27.98363364]
[1730479495176,27.98363364,165.84,165.79,27.98363364]
[1730479495680,27.98363364,165.86,165.81,27.98363364]
[1730479496684,27.98363364,165.87,165.82,27.98363364]
[1730479496902,6.2976,165.91,165.79,21.111]
[1730479496903,34.01183364,165.89,165.83,27.98363364]
[1730479497202,27.98363364,165.88,165.83,27.98363364]
[1730479497514,27.98363364,165.89,165.84,27.98363364]
[1730479497715,6.0272,165.92,165.85,27.98363364]
[1730479497716,27.98363364,165.91,165.85,27.98363364]
[1730479497880,27.98363364,165.91,165.86,23.776884]
[1730479498809,27.98363364,165.9,165.85,27.98363364]
[1730479500004,27.98363364,165.91,165.86,27.98363364]
[1730479500384,34.01103364,165.91,165.86,27.98363364]
[1730479500710,6.0274,165.91,165.87,27.98363364]
[1730479500883,27.98363364,165.92,165.88,27.98363364]
[1730479501083,27.98363364,165.95,165.9,27.98363364]
[1730479501279,27.98363364,165.96,165.92,27.98363364]
[1730479501503,27.98363364,165.93,165.85,23.776884]
[1730479501717,21.0868,165.98,165.87,23.776884]
[1730479502215,21.0868,165.98,165.87,51.76051764]
[1730479502216,27.98363364,165.92,165.87,51.76051764]
[1730479502812,27.98363364,165.9,165.85,43.05743364]
[1730479502985,27.98363364,165.88,165.84,6.4988]
[1730479503187,27.98363364,165.88,165.83,27.98363364]
[1730479504226,27.98363364,165.87,165.82,49.04823364]
[1730479504517,34.01203364,165.88,165.83,51.76051764]
[1730479505610,27.98363364,165.87,165.83,23.776884]
[1730479505914,27.98363364,165.88,165.83,51.76051764]
[1730479506816,34.01093364,165.91,165.86,27.98363364]
[1730479507112,27.98363364,165.92,165.87,27.98363364]
[1730479507419,27.98363364,165.9,165.86,23.776884]
[1730479507908,27.98363364,165.9,165.84,0.12549]
[1730479507909,27.98363364,165.89,165.84,34.01323364]
[1730479508217,27.98363364,165.88,165.84,23.776884]
[1730479508897,27.98363364,165.89,165.84,51.76051764]
[1730479509215,27.98363364,165.91,165.86,27.98363364]
[1730479511215,27.98363364,165.92,165.87,27.98363364]
[1730479511517,27.98363364,165.95,165.9,51.76051764]
[1730479511695,27.98363364,165.95,165.9,27.98363364]
[1730479513489,34.00973364,165.95,165.9,27.98363364]
[1730479513697,27.98363364,165.91,165.83,40.42343364]
[1730479513903,27.98363364,165.85,165.81,15.0768]
[1730479514212,27.98363364,165.85,165.8,34.01463364]
[1730479514510,27.98363364,165.85,165.8,43.06203364]
[1730479514727,27.98363364,165.84,165.79,6.2931]
[1730479515017,27.98363364,165.81,165.77,15.0808]
[1730479515185,21.0957,165.91,165.74,65.47613364]
[1730479515186,27.98363364,165.79,165.74,65.47613364]
[1730479515610,27.98363364,165.81,165.76,27.98363364]
[1730479516511,27.98363364,165.82,165.76,27.98363364]
[1730479516718,27.98363364,165.81,165.76,27.98363364]
[1730479517300,27.98363364,165.79,165.75,15.0829]
[1730479517502,27.98363364,165.8,165.75,49.09963364]
[1730479517824,27.98363364,165.81,165.76,27.98363364]
[1730479518122,27.98363364,165.8,165.75,49.09963364]
[1730479518621,27.98363364,165.81,165.76,51.76051764]
[1730479518817,27.98363364,165.82,165.77,27.98363364]
[1730479518996,27.98363364,165.83,165.77,27.98363364]
[1730479519416,27.98363364,165.82,165.77,27.98363364]
[1730479519613,27.98363364,165.79,165.75,23.776884]
[1730479519800,27.98363364,165.77,165.72,43.06923364]
[1730479520001,27.98363364,165.76,165.71,27.98363364]
[1730479520207,27.98363364,165.73,165.69,15.0884]
[1730479520397,27.98363364,165.74,165.69,15.0884]
[1730479520719,27.98363364,165.74,165.69,43.07203364]
[1730479520916,27.98363364,165.74,165.66,21.5118]
[1730479520917,27.98363364,165.71,165.66,64.58643364]
[1730479521125,27.98363364,165.76,165.65,27.98363364]
[1730479521126,27.98363364,165.7,165.65,27.98363364]
[1730479521411,27.98363364,165.71,165.66,27.98363364]
[1730479521793,27.98363364,165.7,165.65,27.98363364]
[1730479522432,6.0331,165.75,165.63,21.29527654]
[1730479522433,27.98363364,165.67,165.63,6.20147654]
[1730479522722,27.98363364,165.66,165.63,6.20147654]
[1730479523099,21.116,165.75,165.63,6.20147654]
[1730479523100,27.98363364,165.64,165.63,6.20147654]
[1730479523407,27.98363364,165.64,165.55,21.6698]
[1730479523408,27.98363364,165.64,165.56,27.98363364]
[1730479523605,27.98363364,165.61,165.56,27.98363364]
[1730479524107,6.3939,165.66,165.55,6.19928948]
[1730479524108,27.98363364,165.59,165.55,6.19928948]
[1730479524320,27.98363364,165.6,165.55,27.98363364]
[1730479524506,27.98363364,165.61,165.56,27.98363364]
[1730479525049,27.98363364,165.62,165.57,27.98363364]
[1730479525218,27.98363364,165.61,165.56,27.98363364]
[1730479525522,27.98363364,165.62,165.57,27.98363364]
[1730479525821,27.98363364,165.68,165.61,27.98363364]
[1730479525997,6.034,165.73,165.62,24.153354]
[1730479526199,27.98363364,165.71,165.64,23.776884]
[1730479526395,6.0331,165.75,165.66,27.98363364]
[1730479526696,27.98363364,165.72,165.67,51.76051764]
[1730479526900,27.98363364,165.73,165.67,27.98363364]
[1730479527607,27.98363364,165.74,165.69,27.98363364]
[1730479528223,27.98363364,165.73,165.67,27.98363364]
[1730479528397,27.98363364,165.68,165.61,34.27163364]
[1730479528720,45.50793108,165.69,165.64,45.50793108]
[1730479529120,21.1161,165.75,165.61,27.4219]
[1730479529323,45.50793108,165.66,165.61,66.64183108]
[1730479529526,45.50793108,165.67,165.61,66.64183108]
[1730479530309,45.50793108,165.66,165.61,66.64183108]
[1730479530619,23.776884,165.74,165.63,45.50793108]
[1730479530927,45.50793108,165.72,165.66,45.50793108]
[1730479531429,45.50793108,165.7,165.65,45.50793108]
[1730479531928,45.50793108,165.7,165.65,51.54443108]
[1730479532125,45.50793108,165.76,165.6,45.50793108]
[1730479532126,45.50793108,165.68,165.63,45.50793108]
[1730479532332,45.50793108,165.71,165.66,45.50793108]
[1730479532629,45.50793108,165.69,165.64,45.50793108]
[1730479532830,23.776884,165.74,165.61,23.776884]
[1730479533128,45.50793108,165.68,165.61,23.776884]
[1730479533340,45.50793108,165.7,165.65,45.50793108]
[1730479533627,45.50793108,165.72,165.67,45.50793108]
[1730479533929,45.50793108,165.72,165.67,51.54393108]
[1730479534112,45.50793108,165.72,165.65,15.0912]
[1730479534113,45.50793108,165.7,165.65,60.59913108]
[1730479534437,45.50793108,165.69,165.65,15.0912]
[1730479534620,45.50793108,165.69,165.65,21.128]
[1730479534946,45.50793108,165.68,165.63,45.50793108]
[1730479535108,6.0331,165.75,165.62,0.12549]
[1730479535109,45.50793108,165.66,165.62,6.0375]
[1730479535303,45.50793108,165.64,165.58,45.50793108]
[1730479535530,45.50793108,165.66,165.61,45.50793108]
[1730479535722,45.50793108,165.68,165.62,45.50793108]
[1730479535916,45.50793108,165.69,165.6,0.12549]
[1730479536234,6.5989,165.74,165.67,45.50793108]
[1730479536235,45.50793108,165.72,165.67,45.50793108]
[1730479536413,51.54183108,165.73,165.68,45.50793108]
[1730479536825,45.50793108,165.73,165.68,45.50793108]
[1730479537006,45.50793108,165.72,165.67,45.50793108]
[1730479537207,45.50793108,165.73,165.67,45.50793108]
[1730479537416,45.50793108,165.74,165.69,45.50793108]
[1730479537713,45.50793108,165.77,165.72,45.50793108]
[1730479538034,45.50793108,165.78,165.73,45.50793108]
[1730479538519,35.9177937,165.85,165.73,45.50793108]
[1730479538520,45.50793108,165.81,165.75,45.50793108]
[1730479538708,45.50793108,165.83,165.78,45.50793108]
[1730479539026,45.50793108,165.82,165.77,45.50793108]
[1730479539241,45.50793108,165.81,165.77,23.776884]
[1730479539417,45.50793108,165.82,165.77,45.50793108]
[1730479539729,45.50793108,165.82,165.74,44.153354]
[1730479539730,45.50793108,165.87,165.81,45.50793108]
[1730479539917,45.50793108,165.91,165.83,0.12549]
[1730479540112,45.50793108,165.92,165.87,45.50793108]
[1730479540307,6.0251,165.97,165.85,43.902374]
[1730479541235,11.75348369,165.99,165.87,0.12549]
[1730479541535,11.75348369,165.99,165.86,0.25098]
[1730479541536,0.6134955,165.99,165.96,45.50793108]
[1730479541714,0.6134955,165.99,165.94,45.50793108]
[1730479542139,0.6134955,165.99,165.94,51.53403108]
[1730479542322,0.6134955,165.99,165.95,69.28481508]
[1730479542631,0.6134955,165.99,165.96,45.50793108]
[1730479543041,46.12142658,165.99,165.93,45.50793108]
[1730479543207,0.6134955,165.99,165.9,15.0692]
[1730479543410,6.6379955,165.99,165.91,43.776884]
[1730479543625,45.50793108,165.98,165.93,45.50793108]
[1730479543932,52.14592658,165.99,165.93,45.50793108]
[1730479544138,45.50793108,165.96,165.91,69.28481508]
[1730479544519,45.50793108,165.97,165.91,69.28481508]
[1730479544725,45.50793108,165.97,165.92,45.50793108]
[1730479544927,0.6134955,165.99,165.95,45.50793108]
[1730479545312,0.6134955,165.99,165.97,45.50793108]
[1730479545516,0.6134955,165.99,165.98,69.28481508]
[1730479545926,0.6134955,165.99,165.98,69.41030508]
[1730479546635,0.6134955,165.99,165.98,75.43510508]
[1730479547340,0.6134955,165.99,165.98,95.68608508]
[1730479547566,0.6134955,165.99,165.98,141.19401616]
[1730479547732,0.6134955,165.99,165.98,147.68661616]
[1730479547913,0.6134955,165.99,165.98,101.92770508]
[1730479548114,0.6134955,165.99,165.98,95.90290508]
[1730479548419,0.6134955,165.99,165.98,101.92770508]
[1730479549325,0.6134955,165.99,165.98,95.90290508]
[1730479549725,0.6134955,165.99,165.98,69.28481508]
[1730479550450,0.6134955,165.99,165.95,45.50793108]
[1730479550623,0.6134955,165.99,165.94,45.50793108]
[1730479550821,0.6134955,165.99,165.95,45.50793108]
[1730479551022,0.6134955,165.99,165.93,6.1054]
[1730479551023,46.12142658,165.99,165.94,45.50793108]
[1730479551386,45.50793108,166.02,165.97,45.50793108]
[1730479551546,45.50793108,166.0,165.95,45.50793108]
[1730479551744,45.50793108,166.0,165.96,23.776884]
[1730479551966,45.50793108,166.0,165.95,45.50793108]
[1730479552360,45.50793108,165.97,165.92,45.50793108]
[1730479552560,45.50793108,166.0,165.94,45.50793108]
[1730479552863,45.50793108,166.0,165.95,45.50793108]
[1730479553068,45.50793108,166.02,165.96,45.50793108]
[1730479553478,21.0792,166.04,165.96,45.50793108]
[1730479553479,45.50793108,166.01,165.96,45.50793108]
[1730479554167,45.50793108,165.99,165.93,69.28481508]
[1730479554473,45.50793108,165.97,165.91,45.50793108]
[1730479554676,45.50793108,165.96,165.91,45.50793108]
[1730479555579,45.50793108,165.96,165.92,23.776884]
[1730479555787,15.0575,166.03,165.92,23.776884]
[1730479555788,45.50793108,165.97,165.92,23.776884]
[1730479556078,15.0575,166.03,165.92,69.28481508]
[1730479556079,45.50793108,165.98,165.92,69.28481508]
[1730479556371,45.50793108,165.97,165.92,69.28481508]
[1730479556672,21.0817,166.02,165.92,69.28481508]
[1730479556673,45.50793108,165.99,165.93,45.50793108]
[1730479556970,45.50793108,165.98,165.93,45.50793108]
[1730479557357,45.50793108,165.98,165.92,69.28481508]
[1730479557683,45.50793108,165.98,165.93,45.50793108]
[1730479557857,21.0817,166.02,165.89,45.50793108]
[1730479557858,45.50793108,165.94,165.89,45.50793108]
[1730479558058,45.50793108,165.93,165.88,45.50793108]
[1730479558249,45.50793108,165.94,165.89,45.50793108]
[1730479558456,45.50793108,165.95,165.89,45.50793108]
[1730479558658,45.50793108,165.95,165.9,45.50793108]
[1730479558859,45.50793108,165.95,165.89,45.50793108]
[1730479559074,45.50793108,165.95,165.87,27.6129]
[1730479559075,45.50793108,165.94,165.88,45.50793108]
[1730479559279,51.2077,165.99,165.93,45.50793108]
[1730479559280,6.0244,165.99,165.93,45.50793108]
[1730479559861,15.0582,166.03,165.97,45.50793108]
[1730479560164,21.0766,166.06,165.97,45.50793108]
[1730479560475,21.0766,166.06,165.92,6.5895]
[1730479560476,45.50793108,166.0,165.95,45.50793108]
[1730479560854,45.50793108,166.03,165.97,45.50793108]
[1730479561055,45.50793108,166.03,165.98,45.50793108]
[1730479561268,6.0222,166.05,166.0,45.50793108]
[1730479561567,45.50793108,166.04,165.99,45.50793108]
[1730479561867,51.52983108,166.06,166.01,45.50793108]
[1730479562177,51.52943108,166.07,165.94,24.027864]
[1730479562386,6.4417,166.11,166.01,45.50793108]
[1730479562387,45.50793108,166.06,166.01,45.50793108]
[1730479562595,45.50793108,166.05,166.0,45.50793108]
[1730479562887,45.50793108,166.06,166.01,45.50793108]
[1730479563454,45.50793108,166.06,166.0,45.50793108]
[1730479563676,45.50793108,166.03,165.98,45.50793108]
[1730479563986,45.50793108,166.05,166.0,45.50793108]
[1730479564189,45.50793108,166.04,165.98,69.28481508]
[1730479564358,45.50793108,166.05,166.0,45.50793108]
[1730479564680,6.0223,166.05,166.01,45.50793108]
[1730479564984,6.0219,166.07,166.03,45.50793108]
[1730479565282,6.0219,166.07,166.04,45.50793108]
[1730479565481,6.0219,166.07,166.03,45.50793108]
[1730479565670,45.50793108,166.06,166.02,23.776884]
[1730479566060,6.0219,166.07,166.02,23.776884]
[1730479566061,51.52983108,166.07,166.02,23.776884]
[1730479566582,45.50793108,166.05,166.0,45.50793108]
[1730479566881,45.50793108,166.06,166.0,69.28481508]
[1730479567181,51.52983108,166.07,166.01,45.50793108]
[1730479567778,6.0219,166.07,166.03,45.50793108]
[1730479567964,45.50793108,166.11,166.06,45.50793108]
[1730479568165,45.50793108,166.1,166.05,45.50793108]
[1730479568381,45.50793108,166.09,166.04,45.50793108]
[1730479568776,45.50793108,166.08,166.03,69.28481508]
[1730479569079,45.50793108,166.08,166.03,45.50793108]
[1730479569578,6.0214,166.08,166.05,45.50793108]
[1730479569782,6.0214,166.08,166.04,45.50793108]
[1730479570121,45.50793108,166.09,166.04,45.50793108]
[1730479570582,45.50793108,166.1,166.05,45.50793108]
[1730479571188,45.50793108,166.1,166.02,21.20719]
[1730479571189,51.52763108,166.12,166.07,45.50793108]
[1730479571367,6.0193,166.13,166.09,45.50793108]
[1730479571678,51.52723108,166.13,166.08,45.50793108]
[1730479573262,6.0193,166.13,166.09,45.50793108]
[1730479573470,6.6323955,166.15,166.11,45.50793108]
[1730479573984,0.6134955,166.15,166.12,23.776884]
[1730479574170,0.6134955,166.15,166.07,21.0751]
[1730479574171,52.14012658,166.15,166.1,45.50793108]
[1730479574380,6.6321955,166.15,166.11,45.50793108]
[1730479574581,0.6134955,166.15,166.12,45.50793108]
[1730479575282,0.6134955,166.15,166.11,69.28481508]
[1730479575482,6.6323955,166.15,166.11,45.50793108]
[1730479575989,6.6323955,166.15,166.13,45.50793108]
[1730479575990,0.6134955,166.15,166.13,45.50793108]
[1730479576987,0.6134955,166.15,166.13,23.776884]
[1730479577382,0.6134955,166.15,166.12,45.50793108]
[1730479577600,6.6323955,166.15,166.12,45.50793108]
[1730479577768,0.6134955,166.15,166.12,45.50793108]
[1730479578087,0.6134955,166.15,166.13,45.50793108]
[1730479578286,0.6134955,166.15,166.14,45.50793108]